bitfinex-derivatives/quotes_BNBF0:USTF0_20250617
["timestamp","ask_amount","ask_price","bid_price","bid_amount"]
[1750154109767,0.99962639,657.91,656.96,2.2739169]
[1750154109969,0.99962639,657.9,656.96,2.2739169]
[1750154110168,0.99962639,657.89,656.96,2.2739169]
[1750154110363,0.99962639,657.89,656.89,0.264673]
[1750154110364,0.99962639,657.88,656.94,2.2739169]
[1750154110669,0.99962639,657.87,656.89,2.5385899]
[1750154110970,0.99962639,657.86,656.89,0.264673]
[1750154111268,0.99962639,657.85,656.89,0.264673]
[1750154111565,0.99962639,657.84,656.89,0.264673]
[1750154111769,0.99962639,657.83,656.89,0.264673]
[1750154111964,0.99962639,657.82,656.89,0.264673]
[1750154112169,0.99962639,657.81,656.89,0.264673]
[1750154112370,0.99962639,657.8,656.89,0.264673]
[1750154112570,0.30396522,657.97,656.89,0.264673]
[1750154112770,0.99977499,657.96,656.89,0.264673]
[1750154112966,0.99977499,657.95,656.89,0.264673]
[1750154113171,0.99977499,657.94,656.89,0.264673]
[1750154113369,0.30396522,657.97,656.89,0.264673]
[1750154113370,0.99977499,657.93,656.89,0.264673]
[1750154113571,0.99977499,657.92,656.89,0.264673]
[1750154113867,0.99977499,657.91,656.89,0.264673]
[1750154114071,0.99977499,657.9,656.89,0.264673]
[1750154114271,0.99977499,657.89,656.89,0.264673]
[1750154114472,0.99977499,657.88,656.89,0.264673]
[1750154114668,0.99977499,657.87,656.89,0.264673]
[1750154114973,0.99977499,657.86,656.89,0.264673]
[1750154115271,0.99977499,657.85,656.89,0.264673]
[1750154115467,0.99977499,657.84,656.89,0.264673]
[1750154115668,0.99977499,657.83,656.89,0.264673]
[1750154115967,0.99977499,657.82,656.89,0.264673]
[1750154116172,0.99977499,657.81,656.89,0.264673]
[1750154116370,0.99977499,657.8,656.89,0.264673]
[1750154116570,0.99977499,657.79,656.89,0.264673]
[1750154116874,0.99977499,657.78,656.89,0.264673]
[1750154117073,0.99977499,657.77,656.89,0.264673]
[1750154117374,0.99977499,657.76,656.89,0.264673]
[1750154117574,0.30396522,657.97,656.89,0.264673]
[1750154117770,0.99994175,657.96,656.89,0.264673]
[1750154117973,0.99994175,657.95,656.89,0.264673]
[1750154118274,0.99986918,657.94,656.89,0.264673]
[1750154118573,0.99986918,657.93,656.89,0.264673]
[1750154118774,0.99986918,657.92,656.89,0.264673]
[1750154118975,0.99986918,657.91,656.89,0.264673]
[1750154119169,0.99986918,657.9,656.89,0.264673]
[1750154119370,0.99986918,657.89,656.89,0.264673]
[1750154119573,0.99986918,657.88,656.89,0.264673]
[1750154119778,0.99986918,657.87,656.89,0.264673]
[1750154119974,0.99986918,657.86,656.89,0.264673]
[1750154120176,0.99986918,657.85,656.89,0.264673]
[1750154120376,0.99986918,657.84,656.89,0.264673]
[1750154120576,0.99986918,657.83,656.89,0.264673]
[1750154120775,0.99986918,657.82,656.89,0.264673]
[1750154120973,0.99986918,657.81,656.89,0.264673]
[1750154121177,0.99986918,657.8,656.89,0.264673]
[1750154121377,0.99986918,657.79,656.89,0.264673]
[1750154121677,0.99986918,657.78,656.89,0.264673]
[1750154121879,0.30396522,657.97,656.89,0.264673]
[1750154122078,1.00021712,657.96,656.89,0.264673]
[1750154122378,1.00021712,657.95,656.89,0.264673]
[1750154122573,1.00021712,657.94,656.89,0.264673]
[1750154122878,1.00021712,657.93,656.89,0.264673]
[1750154123077,1.00021712,657.92,656.89,0.264673]
[1750154123274,1.00021712,657.91,656.89,0.264673]
[1750154123478,1.00021712,657.9,656.89,0.264673]
[1750154123678,1.00021712,657.89,656.89,0.264673]
[1750154123880,1.00021712,657.88,656.89,0.264673]
[1750154124177,1.00021712,657.87,656.92,2.2739169]
[1750154124379,1.00021712,657.86,657.02,2.2739169]
[1750154124579,1.00021712,657.85,657.0,2.2739169]
[1750154124880,1.00021712,657.84,656.92,2.2739169]
[1750154125074,1.00021712,657.83,656.92,2.2739169]
[1750154125273,1.00021712,657.82,656.92,2.2739169]
[1750154125473,1.00021712,657.81,656.92,2.2739169]
[1750154125679,1.00021712,657.8,656.93,2.2739169]
[1750154125873,0.30396522,657.97,656.93,2.2739169]
[1750154126078,1.00091993,657.96,656.93,2.2739169]
[1750154126279,1.00091993,657.95,656.89,0.264673]
[1750154126478,1.00091993,657.94,656.89,0.264673]
[1750154126775,1.00091993,657.93,656.89,0.264673]
[1750154126974,1.00091993,657.92,656.89,0.264673]
[1750154127174,1.00091993,657.91,656.89,0.264673]
[1750154127379,1.00091993,657.9,656.89,0.264673]
[1750154127575,1.00091993,657.89,656.89,0.264673]
[1750154127778,1.00091993,657.88,656.89,0.264673]
[1750154127977,1.00091993,657.87,656.89,0.264673]
[1750154128175,1.00091993,657.86,656.89,0.264673]
[1750154128381,1.00091993,657.85,656.89,0.264673]
[1750154128580,1.00091993,657.84,656.89,0.264673]
[1750154128777,1.00091993,657.83,656.89,0.264673]
[1750154128982,1.00091993,657.82,656.89,0.264673]
[1750154129281,1.00091993,657.81,656.89,0.264673]
[1750154129580,1.00091993,657.8,656.89,0.264673]
[1750154129781,1.00091993,657.79,656.89,0.264673]
[1750154129976,1.00091993,657.78,656.89,0.264673]
[1750154130181,1.00091993,657.77,656.89,0.264673]
[1750154130376,1.00091993,657.76,656.89,0.264673]
[1750154130681,1.00091993,657.75,656.89,0.264673]
[1750154130881,1.00091993,657.74,656.68,2.2739169]
[1750154131078,1.00091993,657.73,656.8,2.2739169]
[1750154131281,1.00091993,657.72,656.81,2.2739169]
[1750154131480,1.00091993,657.71,656.83,2.2739169]
[1750154131683,1.00091993,657.7,656.83,2.2739169]
[1750154131977,1.00091993,657.69,657.03,2.2739169]
[1750154132181,1.00091993,657.68,657.03,2.2739169]
[1750154132382,1.00091993,657.67,657.03,2.2739169]
[1750154132583,1.00091993,657.66,656.85,2.2739169]
[1750154132783,1.00091993,657.65,656.85,2.2739169]
[1750154133082,1.00091993,657.64,656.85,2.2739169]
[1750154133284,1.00091993,657.63,656.85,2.2739169]
[1750154133481,1.00091993,657.62,656.83,2.2739169]
[1750154133785,1.00091993,657.61,656.83,2.2739169]
[1750154133980,1.00091993,657.6,656.83,2.2739169]
[1750154134283,1.00091993,657.59,656.84,2.2739169]
[1750154134484,1.00091993,657.58,656.83,2.2739169]
[1750154134785,1.00091993,657.57,656.83,2.2739169]
[1750154135083,1.00091993,657.56,656.84,2.2739169]
[1750154135279,1.00010376,657.79,656.84,2.2739169]
[1750154135482,1.00183903,657.78,656.83,2.2739169]
[1750154135679,1.00183903,657.77,656.83,2.2739169]
[1750154135979,1.00183903,657.76,656.75,2.2739169]
[1750154136280,1.13394049,657.74,656.65,2.2739169]
[1750154136480,1.30591517,657.73,656.63,2.2739169]
[1750154136683,1.30591979,657.72,656.63,2.2739169]
[1750154136884,1.30592441,657.71,656.55,2.2739169]
[1750154137084,1.30592904,657.7,656.53,2.53869965]
[1750154137383,1.30593366,657.69,656.57,2.2739169]
[1750154137579,1.30593828,657.68,656.53,2.53869965]
[1750154137784,1.30594291,657.67,656.53,0.26478275]
[1750154137985,1.30594753,657.66,656.53,0.26478275]
[1750154138281,1.00183903,657.65,656.53,0.26478275]
[1750154138487,1.00183903,657.64,656.53,0.26478275]
[1750154138681,1.00183903,657.63,656.53,0.26478275]
[1750154138985,1.00183903,657.62,656.53,0.26478275]
[1750154139184,1.00183903,657.61,656.53,0.26478275]
[1750154139384,1.00183903,657.6,656.53,0.26478275]
[1750154139684,1.00183903,657.59,656.53,0.26478275]
[1750154139879,1.00183903,657.58,656.53,2.53869965]
[1750154140083,1.00183903,657.57,656.53,2.53869965]
[1750154140282,1.00183903,657.56,656.53,2.53869965]
[1750154140481,1.00183903,657.55,656.53,0.26478275]
[1750154140680,1.00183903,657.54,656.53,0.26478275]
[1750154140882,0.3041085,657.66,656.53,0.26478275]
[1750154141086,0.99949537,657.65,656.53,2.53869965]
[1750154141286,0.99949537,657.64,656.53,0.26478275]
[1750154141484,0.99949537,657.63,656.53,0.26478275]
[1750154141682,0.99949537,657.62,656.53,0.26478275]
[1750154141886,0.99949537,657.61,656.53,0.26478275]
[1750154142184,0.99949537,657.6,656.53,0.26478275]
[1750154142383,0.3041085,657.66,656.63,2.2739169]
[1750154142589,0.99909969,657.65,656.7,2.2739169]
[1750154142882,0.3041085,657.66,656.73,2.2739169]
[1750154145084,0.3041085,657.66,656.74,2.2739169]
[1750154145485,0.3041085,657.66,656.87,2.2739169]
[1750154146592,0.99903348,657.65,656.53,0.56941467]
[1750154146788,0.99903348,657.64,656.53,0.56941467]
[1750154146987,0.99903348,657.63,656.53,0.56941467]
[1750154147191,0.99903348,657.62,656.53,0.56941467]
[1750154147393,0.99903348,657.61,656.53,0.56941467]
[1750154147688,0.99903348,657.6,656.53,0.56941467]
[1750154147894,0.99903348,657.59,656.53,0.56941467]
[1750154148092,0.99903348,657.58,656.53,0.56941467]
[1750154148291,0.99903348,657.57,656.53,0.56941467]
[1750154148493,0.99903348,657.56,656.53,0.56941467]
[1750154148790,0.99903348,657.55,656.53,0.56941467]
[1750154148990,0.3041085,657.66,656.53,0.56941467]
[1750154148991,0.99903348,657.54,656.53,0.56941467]
[1750154149292,0.3041085,657.66,656.53,0.56941467]
[1750154149492,0.99721564,657.65,656.53,2.84333157]
[1750154149692,0.99721564,657.64,656.61,2.2739169]
[1750154149892,0.99721564,657.63,656.61,2.2739169]
[1750154150092,0.3041085,657.66,656.53,0.56941467]
[1750154150093,0.99721564,657.62,656.6,2.2739169]
[1750154150293,0.99721564,657.61,656.6,2.2739169]
[1750154150589,0.99721564,657.6,656.63,2.2739169]
[1750154150790,0.99721564,657.59,656.63,2.2739169]
[1750154150994,0.3041085,657.66,656.63,2.2739169]
[1750154151194,0.99717813,657.65,656.63,2.2739169]
[1750154151388,0.99717813,657.64,656.63,2.2739169]
[1750154151590,0.99717813,657.63,656.63,2.2739169]
[1750154151790,0.99717813,657.62,656.63,2.2739169]
[1750154151994,0.99717813,657.61,656.61,2.2739169]
[1750154152293,0.99717813,657.6,656.61,2.2739169]
[1750154152489,0.99717813,657.59,656.61,2.2739169]
[1750154152795,0.3041085,657.66,656.61,2.2739169]
[1750154153091,0.99719843,657.65,656.61,2.2739169]
[1750154153293,0.99719843,657.64,656.61,2.2739169]
[1750154153489,0.99719843,657.63,656.61,2.2739169]
[1750154153691,0.99719843,657.62,656.61,2.2739169]
[1750154153893,0.3041085,657.66,656.61,2.2739169]
[1750154153894,0.99719843,657.61,656.61,2.2739169]
[1750154154093,0.99719843,657.6,656.6,2.2739169]
[1750154154291,0.99719843,657.59,656.6,2.2739169]
[1750154154591,0.99719843,657.58,656.53,0.56941467]
[1750154154795,0.99719843,657.57,656.53,0.56941467]
[1750154155094,0.3041085,657.66,656.53,0.56941467]
[1750154155296,0.99725821,657.65,656.53,0.56941467]
[1750154155590,0.99725821,657.64,656.53,0.56941467]
[1750154155794,0.3041085,657.66,656.53,0.56941467]
[1750154155795,0.99725821,657.63,656.53,0.56941467]
[1750154155993,0.3041085,657.66,656.53,0.56941467]
[1750154155994,0.99725821,657.62,656.53,0.56941467]
[1750154156194,0.99725821,657.61,656.53,0.56941467]
[1750154156392,0.99725821,657.6,656.53,0.56941467]
[1750154156592,0.3041085,657.66,656.53,0.56941467]
[1750154156593,0.99725821,657.59,656.53,0.56941467]
[1750154156791,0.99725821,657.58,656.53,0.56941467]
[1750154156993,0.99725821,657.57,656.53,0.56941467]
[1750154157292,0.3041085,657.66,656.53,0.56941467]
[1750154157492,0.99742847,657.65,656.53,0.56941467]
[1750154157691,0.99742847,657.64,656.53,0.56941467]
[1750154157895,0.99742847,657.63,656.53,0.56941467]
[1750154158096,0.3041085,657.66,656.53,0.56941467]
[1750154158097,0.99742847,657.62,656.53,0.56941467]
[1750154158393,0.99742847,657.61,656.53,0.56941467]
[1750154158593,0.99742847,657.6,656.53,0.56941467]
[1750154158793,0.99742847,657.59,656.53,0.56941467]
[1750154159097,0.99742847,657.58,656.53,0.56941467]
[1750154159294,0.99742847,657.57,656.53,0.56941467]
[1750154159498,0.3041085,657.66,656.53,0.56941467]
[1750154159695,0.99761462,657.65,656.53,0.56941467]
[1750154159899,0.99761462,657.64,656.53,0.56941467]
[1750154160098,0.99761462,657.63,656.53,0.56941467]
[1750154160299,0.99761462,657.62,656.53,0.56941467]
[1750154160499,0.99761462,657.61,656.53,0.56941467]
[1750154160700,0.99761462,657.6,656.53,0.56941467]
[1750154160902,0.99761462,657.59,656.53,0.56941467]
[1750154161095,0.99761462,657.58,656.53,0.56941467]
[1750154161397,0.99761462,657.57,656.53,0.30463192]
[1750154161600,0.3041085,657.66,656.53,0.30463192]
[1750154161898,0.99772557,657.65,656.53,0.30463192]
[1750154162101,0.99772557,657.64,656.53,0.30463192]
[1750154162400,0.3041085,657.66,656.53,0.30463192]
[1750154162401,0.99772557,657.63,656.53,0.30463192]
[1750154162597,0.99772557,657.62,656.53,0.30463192]
[1750154162796,0.99772557,657.61,656.53,0.30463192]
[1750154162999,0.99772557,657.6,656.53,0.30463192]
[1750154163199,0.99772557,657.59,656.55,2.2739169]
[1750154163396,0.99772557,657.58,656.56,2.2739169]
[1750154163601,0.3041085,657.66,656.56,2.2739169]
[1750154163602,0.99772557,657.57,656.56,2.2739169]
[1750154163802,0.3041085,657.66,656.56,2.2739169]
[1750154164001,0.99797585,657.65,656.56,2.2739169]
[1750154164203,0.99797585,657.64,656.56,2.2739169]
[1750154164397,0.99797585,657.63,656.57,2.2739169]
[1750154164599,0.99797585,657.62,656.56,2.2739169]
[1750154164901,0.99797585,657.61,656.56,2.2739169]
[1750154165101,0.99797585,657.6,656.56,2.2739169]
[1750154165398,0.99797585,657.59,656.62,2.2739169]
[1750154165601,0.3041085,657.66,656.62,2.2739169]
[1750154165602,0.99797585,657.58,656.62,2.2739169]
[1750154165798,0.3041085,657.66,656.62,2.2739169]
[1750154166003,0.99816148,657.65,656.62,2.2739169]
[1750154166203,0.99816148,657.64,656.62,2.2739169]
[1750154166405,0.99816148,657.63,656.55,2.2739169]
[1750154166701,0.99816148,657.62,656.55,2.2739169]
[1750154166905,0.99816148,657.61,656.55,2.2739169]
[1750154167104,0.99816148,657.6,656.55,2.2739169]
[1750154167304,0.99816148,657.59,656.54,2.2739169]
[1750154167604,0.99816148,657.58,656.54,2.2739169]
[1750154168203,0.99816148,657.57,656.54,2.2739169]
[1750154168506,0.99816148,657.56,656.54,2.2739169]
[1750154168906,0.99816148,657.55,656.54,2.2739169]
[1750154169202,0.3041085,657.66,656.54,2.2739169]
[1750154169804,0.99832981,657.65,656.54,2.2739169]
[1750154170407,0.99832981,657.64,656.53,0.30463192]
[1750154171301,0.99832981,657.63,656.53,0.30463192]
[1750154172404,0.3041085,657.66,656.53,0.30463192]
[1750154175403,0.26484522,657.38,656.58,0.26484522]
[1750154181214,0.26484522,657.38,656.53,0.30463192]
[1750154182421,0.26484522,657.38,656.77,2.26684034]
[1750154183320,0.26484522,657.38,656.53,0.30463192]
[1750154183321,0.26484522,657.38,656.76,2.26684034]
[1750154183820,0.26484522,657.38,656.73,2.26684034]
[1750154184320,0.26484522,657.38,656.72,2.26684034]
[1750154184616,0.26484522,657.38,656.69,2.26684034]
[1750154184917,0.26484522,657.38,656.73,2.26684034]
[1750154185321,0.26484522,657.38,656.68,2.26684034]
[1750154185516,0.26484522,657.38,656.69,2.26684034]
[1750154185819,0.26484522,657.38,656.67,2.26684034]
[1750154186218,0.26484522,657.38,656.66,2.26684034]
[1750154186621,0.26484522,657.38,656.67,2.26684034]
[1750154187015,0.26484522,657.38,656.66,2.26684034]
[1750154187315,0.26484522,657.38,656.53,0.30463192]
[1750154187316,0.26484522,657.38,656.73,2.26684034]
[1750154188519,0.26484522,657.38,656.74,2.26684034]
[1750154190023,0.26484522,657.38,656.78,2.26684034]
[1750154190624,0.26484522,657.38,656.79,2.26684034]
[1750154192118,0.26484522,657.38,656.77,2.26684034]
[1750154194827,0.26484522,657.38,656.76,2.26684034]
[1750154195127,0.26484522,657.38,656.78,2.26684034]
[1750154195527,0.26484522,657.38,656.79,2.26684034]
[1750154195926,0.26484522,657.38,656.77,2.26684034]
[1750154197030,0.26484522,657.38,656.79,2.26684034]
[1750154197327,0.26484522,657.38,656.72,2.26684034]
[1750154197527,0.26484522,657.38,656.73,2.26684034]
[1750154198627,0.26484522,657.38,656.74,2.26684034]
[1750154199027,0.26484522,657.38,656.73,2.26684034]
[1750154200631,0.26484522,657.38,656.71,2.26684034]
[1750154201934,0.26484522,657.38,656.73,2.26684034]
[1750154203036,0.26484522,657.38,656.69,2.26684034]
[1750154203635,0.26484522,657.38,656.67,2.26684034]
[1750154204235,0.26484522,657.38,656.65,2.26684034]
[1750154204535,0.26484522,657.38,656.63,2.26684034]
[1750154204935,0.26484522,657.38,656.64,2.26684034]
[1750154205130,0.26484522,657.38,656.63,2.26684034]
[1750154205334,0.26484522,657.38,656.65,2.26684034]
[1750154205837,0.26484522,657.38,656.66,2.26684034]
[1750154206136,0.26484522,657.38,656.64,2.26684034]
[1750154206631,0.26484522,657.38,656.65,2.26684034]
[1750154208935,0.26484522,657.38,656.66,2.26684034]
[1750154210038,0.26484522,657.38,656.67,2.26684034]
[1750154212436,0.26484522,657.38,656.65,2.26684034]
[1750154212634,0.26484522,657.38,656.67,2.26684034]
[1750154212835,0.26484522,657.38,656.69,2.26684034]
[1750154213435,0.26484522,657.38,656.53,0.30463192]
[1750154213436,0.26484522,657.38,656.71,2.26684034]
[1750154214040,0.26484522,657.38,656.53,0.30463192]
[1750154214041,0.26484522,657.38,656.73,2.26684034]
[1750154214637,0.26484522,657.38,656.76,2.26684034]
[1750154215242,0.26484522,657.38,656.77,2.26684034]
[1750154215839,0.26484522,657.38,656.79,2.26684034]
[1750154216338,0.26484522,657.38,656.69,2.26684034]
[1750154216540,0.26484522,657.38,656.67,2.26684034]
[1750154217843,0.26484522,657.38,656.65,2.26684034]
[1750154218346,0.26484522,657.38,656.53,0.30463192]
[1750154218347,0.26484522,657.38,656.64,2.26684034]
[1750154221644,0.26484522,657.38,656.65,2.26684034]
[1750154223148,1.00184024,657.37,656.63,2.26684034]
[1750154223348,0.26484522,657.38,656.63,2.26684034]
[1750154223546,1.00183966,657.37,656.62,2.26684034]
[1750154223849,0.26484522,657.38,656.62,2.26684034]
[1750154224048,1.0018377,657.37,656.63,2.26684034]
[1750154224252,0.26484522,657.38,656.66,2.26684034]
[1750154224555,0.26484522,657.38,656.67,2.26684034]
[1750154224850,0.26484522,657.38,656.78,2.26684034]
[1750154225244,0.26484522,657.38,656.79,2.26684034]
[1750154225449,0.26484522,657.38,656.78,2.26684034]
[1750154225649,0.26484522,657.38,656.79,2.26684034]
[1750154226648,0.26484522,657.38,656.76,2.26684034]
[1750154227251,0.26484522,657.38,656.53,0.30463192]
[1750154227252,0.26484522,657.38,656.78,2.26684034]
[1750154229653,0.26484522,657.38,656.53,0.30463192]
[1750154229654,0.26484522,657.38,656.79,2.26684034]
[1750154229954,0.26484522,657.38,656.82,2.26684034]
[1750154233151,0.26484522,657.38,656.81,2.26684034]
[1750154233350,0.26484522,657.38,656.82,2.26684034]
[1750154233549,0.26484522,657.38,656.53,0.30463192]
[1750154233550,0.26484522,657.38,656.83,2.26684034]
[1750154234649,0.26484522,657.38,656.88,2.26684034]
[1750154234854,0.26484522,657.38,656.89,2.26684034]
[1750154235352,0.26484522,657.38,656.92,2.26684034]
[1750154236447,0.26484522,657.38,656.91,2.26684034]
[1750154237450,0.26484522,657.38,656.92,2.26684034]
[1750154237850,0.26484522,657.38,656.93,2.26684034]
[1750154239056,0.26484522,657.38,656.92,2.26684034]
[1750154239355,0.26484522,657.38,656.53,0.30463192]
[1750154239356,0.26484522,657.38,656.93,2.26684034]
[1750154239557,0.26484522,657.38,656.88,2.26684034]
[1750154240156,0.26484522,657.38,656.85,2.26684034]
[1750154240457,0.26484522,657.38,656.84,2.26684034]
[1750154241154,0.26484522,657.38,656.83,2.26684034]
[1750154242157,0.26484522,657.38,656.65,2.26684034]
[1750154242555,0.26484522,657.38,656.64,2.26684034]
[1750154242763,0.26484522,657.38,656.63,2.26684034]
[1750154243263,0.26484522,657.38,656.62,2.26684034]
[1750154245664,0.26484522,657.38,656.53,0.30463192]
[1750154245665,0.26484522,657.38,656.63,2.26684034]
[1750154245861,0.26484522,657.38,656.62,2.26684034]
[1750154246266,0.26484522,657.38,656.6,2.26684034]
[1750154246459,0.26484522,657.38,656.53,0.30463192]
[1750154246460,0.26484522,657.38,656.61,2.26684034]
[1750154246865,0.26484522,657.38,656.63,2.26684034]
[1750154247063,0.26484522,657.38,656.65,2.26684034]
[1750154247666,0.26484522,657.38,656.72,2.26684034]
[1750154248165,0.26484522,657.38,656.73,2.26684034]
[1750154248370,0.26484522,657.38,656.74,2.26684034]
[1750154249070,0.26484522,657.38,656.75,2.26684034]
[1750154251567,0.26484522,657.38,656.76,2.26684034]
[1750154251770,0.26484522,657.38,656.75,2.26684034]
[1750154252269,0.26484522,657.38,656.77,2.26684034]
[1750154252469,0.26484522,657.38,656.76,2.26684034]
[1750154252871,0.26484522,657.38,656.77,2.26684034]
[1750154255271,0.26484522,657.38,656.76,2.26684034]
[1750154255673,0.26484522,657.38,656.78,2.26684034]
[1750154255869,0.26484522,657.38,656.77,2.26684034]
[1750154256170,0.26484522,657.38,656.81,2.26684034]
[1750154257375,0.26484522,657.38,656.75,2.26684034]
[1750154257971,0.26484522,657.38,656.73,2.26684034]
[1750154258174,0.26484522,657.38,656.75,2.26684034]
[1750154259676,0.26484522,657.38,656.74,2.26684034]
[1750154260873,0.26484522,657.38,656.65,2.26684034]
[1750154261173,0.26484522,657.38,656.67,2.26684034]
[1750154261774,0.26484522,657.38,656.66,2.26684034]
[1750154262176,0.26484522,657.38,656.67,2.26684034]
[1750154262972,0.26484522,657.38,656.53,0.30463192]
[1750154262973,0.26484522,657.38,656.66,2.26684034]
[1750154263481,0.26484522,657.38,656.67,2.26684034]
[1750154264374,0.26484522,657.38,656.59,2.26684034]
[1750154264975,0.26484522,657.38,656.64,2.26684034]
[1750154265176,0.26484522,657.38,656.67,2.26684034]
[1750154265576,0.26484522,657.38,656.68,2.26684034]
[1750154266279,0.26484522,657.38,656.69,2.26684034]
[1750154267381,0.26484522,657.38,656.72,2.26684034]
[1750154268181,0.26484522,657.38,656.71,2.26684034]
[1750154269077,0.26484522,657.38,656.72,2.26684034]
[1750154269577,0.26484522,657.38,656.73,2.26684034]
[1750154270082,0.26484522,657.38,656.71,2.26684034]
[1750154270281,0.26484522,657.38,656.72,2.26684034]
[1750154272284,0.26484522,657.38,656.53,0.30463192]
[1750154272285,0.26484522,657.38,656.81,2.26684034]
[1750154272988,0.26484522,657.38,656.58,2.26684034]
[1750154275485,0.26484522,657.38,656.59,2.26684034]
[1750154275688,0.26484522,657.38,656.61,2.26684034]
[1750154275988,0.26484522,657.38,656.53,0.30463192]
[1750154275989,0.26484522,657.38,656.64,2.26684034]
[1750154277289,0.26484522,657.38,656.67,2.26684034]
[1750154280189,0.26484522,657.38,656.66,2.26684034]
[1750154280487,0.26484522,657.38,656.67,2.26684034]
[1750154281191,0.26484522,657.38,656.66,2.26684034]
[1750154281387,0.26484522,657.38,656.67,2.26684034]
[1750154282191,0.26484522,657.38,656.7,2.26684034]
[1750154282787,0.26484522,657.38,656.78,2.26684034]
[1750154282987,0.26484522,657.38,656.79,2.26684034]
[1750154283185,0.26484522,657.38,656.8,2.26684034]
[1750154283787,1.00577311,657.37,656.64,2.26684034]
[1750154283991,1.00577311,657.36,656.64,2.26684034]
[1750154284292,1.00577311,657.35,656.64,2.26684034]
[1750154284591,0.26484522,657.38,656.64,2.26684034]
[1750154284791,1.00559652,657.37,656.64,2.26684034]
[1750154284991,1.00559652,657.36,656.63,2.26684034]
[1750154285186,0.26484522,657.38,656.63,2.26684034]
[1750154285388,1.00558055,657.37,656.64,2.26684034]
[1750154285592,0.26484522,657.38,656.63,2.26684034]
[1750154285793,1.00536939,657.37,656.63,2.26684034]
[1750154285990,0.26484522,657.38,656.63,2.26684034]
[1750154286189,1.00535423,657.37,656.63,2.26684034]
[1750154286394,0.26484522,657.38,656.64,2.26684034]
[1750154286689,0.26484522,657.38,656.53,0.30463192]
[1750154286690,1.00535398,657.37,656.62,2.26684034]
[1750154286890,0.26484522,657.38,656.62,2.26684034]
[1750154287094,1.00517622,657.37,656.62,2.26684034]
[1750154287296,1.0051586,657.36,656.53,0.30463192]
[1750154287496,1.0051586,657.35,656.53,0.30463192]
[1750154287695,1.0051586,657.34,656.53,0.30463192]
[1750154287897,1.0051586,657.33,656.53,0.30463192]
[1750154288097,1.0051586,657.32,656.53,0.30463192]
[1750154288393,0.26484522,657.38,656.53,0.30463192]
[1750154288696,1.00498185,657.37,656.53,0.30463192]
[1750154288895,1.00498185,657.36,656.53,2.57147226]
[1750154289196,1.00498185,657.35,656.53,0.30463192]
[1750154289391,1.00498185,657.34,656.53,0.30463192]
[1750154289595,1.00498185,657.33,656.53,0.30463192]
[1750154289896,0.26484522,657.38,656.53,2.57147226]
[1750154290093,1.00469787,657.37,656.53,2.57147226]
[1750154290394,1.00469787,657.36,656.53,0.30463192]
[1750154290594,1.00469787,657.35,656.53,0.30463192]
[1750154290898,1.00469787,657.34,656.53,2.57147226]
[1750154291193,0.26484522,657.38,656.54,2.26684034]
[1750154291395,1.00453573,657.37,656.54,2.26684034]
[1750154291698,1.00453573,657.36,656.56,2.26684034]
[1750154291894,1.00453573,657.35,656.55,2.26684034]
[1750154292194,0.26484522,657.38,656.55,2.26684034]
[1750154292497,1.00440528,657.37,656.55,2.26684034]
[1750154292698,1.00440528,657.36,656.55,2.26684034]
[1750154292898,1.00440528,657.35,656.55,2.26684034]
[1750154293094,0.26484522,657.38,656.55,2.26684034]
[1750154293394,1.00428557,657.37,656.55,2.26684034]
[1750154293595,1.00428557,657.36,656.53,2.57147226]
[1750154293801,1.00428557,657.35,656.53,2.57147226]
[1750154294000,0.26484522,657.38,656.53,2.57147226]
[1750154294196,1.00419963,657.37,656.53,2.57147226]
[1750154294397,1.00419963,657.36,656.57,2.26684034]
[1750154294600,1.00411381,657.35,656.54,2.26684034]
[1750154294801,1.00419396,657.34,656.49,2.26684034]
[1750154295001,1.00419396,657.33,656.49,2.26684034]
[1750154295201,1.00419396,657.32,656.49,2.26684034]
[1750154295397,0.26484522,657.38,656.49,2.26684034]
[1750154295398,1.00419396,657.31,656.49,2.26684034]
[1750154295601,0.26484522,657.38,656.4,0.2648805]
[1750154295602,1.00419396,657.3,656.47,2.26684034]
[1750154295801,1.00419396,657.29,656.47,2.26684034]
[1750154296001,0.26484522,657.38,656.47,2.26684034]
[1750154296201,1.00401103,657.37,656.47,2.26684034]
[1750154296401,1.00401103,657.36,656.47,2.26684034]
[1750154296601,1.00401103,657.35,656.47,2.26684034]
[1750154296802,1.00401103,657.34,656.47,2.26684034]
[1750154296999,1.00401103,657.33,656.47,2.26684034]
[1750154297198,1.00401103,657.32,656.47,2.26684034]
[1750154297497,1.00401103,657.31,656.47,2.26684034]
[1750154297702,0.26484522,657.38,656.52,2.26684034]
[1750154297899,1.00361799,657.37,656.52,2.26684034]
[1750154298098,1.00361799,657.36,656.52,2.26684034]
[1750154298302,1.00361799,657.35,656.52,2.26684034]
[1750154298504,1.00361799,657.34,656.51,2.26684034]
[1750154298700,1.00361799,657.33,656.55,2.26684034]
[1750154298900,1.00381575,657.32,656.56,2.26684034]
[1750154299106,0.26484522,657.38,656.56,2.26684034]
[1750154299301,1.00379009,657.37,656.56,2.26684034]
[1750154299505,1.00379009,657.36,656.59,2.26684034]
[1750154299705,1.00379009,657.35,656.59,2.26684034]